bitfinex/quotes_SOLUSD_20260114
["timestamp","ask_amount","ask_price","bid_price","bid_amount"]
[1768392842107,0.65707113,144.3,144.27,2.76871438]
[1768392842398,0.65707113,144.3,144.23,17.3328567]
[1768392842399,0.65707113,144.3,144.26,2.06635073]
[1768392842597,0.65707113,144.3,144.25,2.06635073]
[1768392843503,0.65707113,144.29,144.25,2.06635073]
[1768392844011,0.65707113,144.27,144.24,0.70236365]
[1768392844313,7.58803869,144.28,144.24,2.76871438]
[1768392844520,7.58803869,144.28,144.24,0.70236365]
[1768392844811,7.58803869,144.28,144.24,2.76871438]
[1768392848823,0.6862633,144.27,144.24,2.76871438]
[1768392850217,0.6862633,144.27,144.23,6.93330041]
[1768392850423,0.6862633,144.28,144.24,2.74306879]
[1768392850925,6.93144797,144.27,144.24,2.74306879]
[1768392851306,6.93144797,144.27,144.24,0.67671806]
[1768392851530,7.61771127,144.27,144.24,2.06635073]
[1768392854139,7.61771127,144.27,144.24,2.74306879]
[1768392856338,17.32667017,144.29,144.24,2.06635073]
[1768392856339,0.6862633,144.26,144.24,2.06635073]
[1768392856511,0.6862633,144.26,144.24,1.34135073]
[1768392856712,0.6862633,144.26,144.24,0.61635073]
[1768392857027,0.6862633,144.26,144.24,0.47761403]
[1768392857627,24.84342068,144.29,144.25,0.67671806]
[1768392859517,0.099,144.28,144.24,0.69304019]
[1768392861542,6.93144797,144.27,144.24,0.69304019]
[1768392865430,6.93144797,144.27,144.24,2.75939092]
[1768392867840,0.10382391,144.26,144.22,2.75939092]
[1768392868219,0.10382391,144.26,144.22,2.06635073]
[1768392868441,0.10382391,144.26,144.21,6.93408957]
[1768392868615,24.26006791,144.27,144.23,0.69304019]
[1768392869225,0.14126763,144.26,144.21,2.06635073]
[1768392870344,6.93240901,144.25,144.21,2.06635073]
[1768392871229,6.93240901,144.25,144.22,0.69304019]
[1768392873344,26.97882277,144.25,144.2,0.69304019]
[1768392873556,0.15132204,144.22,144.18,0.69304019]
[1768392873843,2.21767277,144.22,144.18,0.69304019]
[1768392874046,0.65416952,144.23,144.18,0.69304019]
[1768392874248,0.65416952,144.23,144.19,0.69304019]
[1768392874425,2.72052025,144.23,144.19,0.69304019]
[1768392874627,7.07511869,144.22,144.19,0.69304019]
[1768392876530,9.14146942,144.22,144.19,0.69304019]
[1768392877162,2.71539123,144.21,144.16,0.66646435]
[1768392877336,2.71539123,144.21,144.17,0.66646435]
[1768392877849,26.33482944,144.22,144.17,0.66646435]
[1768392878039,26.46469031,144.22,144.17,0.66646435]
[1768392879046,24.39833958,144.22,144.17,0.66646435]
[1768392879357,27.62998641,144.22,144.17,0.66646435]
[1768392879656,6.93481276,144.2,144.17,0.66646435]
[1768392881163,6.93433187,144.21,144.17,0.66646435]
[1768392881447,10.1659787,144.21,144.17,0.66646435]
[1768392883242,6.93433187,144.21,144.17,0.66646435]
[1768392884029,7.59466506,144.21,144.17,0.66646435]
[1768392886560,6.93433187,144.21,144.18,0.66646435]
[1768392887860,7.06419274,144.21,144.17,7.60255835]
[1768392888249,6.93433187,144.21,144.18,0.66646435]
[1768392892061,0.66033319,144.2,144.17,6.936094]
[1768392892241,6.93433187,144.21,144.18,0.66646435]
[1768392892869,6.93433187,144.21,144.17,6.936094]
[1768392893373,6.93433187,144.21,144.18,0.66646435]
[1768392898180,0.66033319,144.2,144.17,6.936094]
[1768392899283,0.63317519,144.2,144.17,6.936094]
[1768392899569,6.93433187,144.21,144.18,0.66646435]
[1768392900155,17.33462765,144.22,144.18,0.66646435]
[1768392900357,20.56627448,144.22,144.18,0.66646435]
[1768392901059,17.33462765,144.22,144.18,0.66646435]
[1768392901259,20.56627448,144.22,144.18,0.66646435]
[1768392901470,28.16581704,144.22,144.18,0.66646435]
[1768392901685,0.10297445,144.21,144.18,0.66646435]
[1768392901976,3.33462128,144.21,144.18,0.66646435]
[1768392902373,0.10297445,144.21,144.18,0.66646435]
[1768392902678,3.33462128,144.21,144.18,0.66646435]
[1768392902878,6.93481276,144.2,144.18,0.66646435]
[1768392905078,6.93481276,144.2,144.16,10.16820359]
[1768392905079,0.10854535,144.19,144.16,10.16820359]
[1768392905663,0.08138548,144.19,144.16,10.16820359]
[1768392905866,0.05422838,144.19,144.16,10.16820359]
[1768392906765,0.05422838,144.19,144.16,6.93655676]
[1768392906960,0.05422838,144.19,144.16,10.16820359]
[1768392909983,6.93481276,144.2,144.17,0.72038432]
[1768392911376,6.93433187,144.21,144.17,0.72038432]
[1768392915786,6.93433187,144.21,144.18,0.71542307]
[1768392916462,6.20933187,144.21,144.2,0.71542307]
[1768392917301,6.20933187,144.21,144.18,0.71542307]
[1768392919773,6.89071012,144.21,144.18,0.71542307]
[1768392919974,6.20933187,144.21,144.18,0.71542307]
[1768392922484,6.89071012,144.21,144.18,0.71542307]
[1768392923304,0.68137825,144.21,144.18,0.71542307]
[1768392924099,0.68137825,144.22,144.19,0.68886762]
[1768392925080,0.68137825,144.22,144.18,10.85623483]
[1768392925489,0.68137825,144.21,144.18,10.85623483]
[1768392926681,0.68137825,144.21,144.18,7.624588]
[1768392926880,0.68137825,144.21,144.18,10.85623483]
[1768392928006,6.93421881,144.22,144.18,10.85623483]
[1768392928199,7.61559706,144.22,144.19,0.68886762]
[1768392929102,7.61559706,144.22,144.18,10.85623483]
[1768392929311,7.61559706,144.22,144.19,0.68886762]
[1768392937013,7.64496132,144.23,144.2,0.67686768]
[1768392939317,6.93359115,144.23,144.21,0.67686768]
[1768392939696,103.61137017,144.24,144.22,0.67686768]
[1768392939697,6.93289316,144.24,144.22,0.67686768]
[1768392940018,6.93260486,144.25,144.22,3.90851451]
[1768392940226,7.64397503,144.25,144.22,3.90851451]
[1768392941321,7.64397503,144.25,144.22,2.7434505]
[1768392941524,7.64397503,144.25,144.22,0.67686768]
[1768392942202,7.64397503,144.25,144.22,2.7434505]
[1768392944732,7.64397503,144.25,144.22,0.67686768]
[1768392949517,7.64397503,144.25,144.22,2.7434505]
[1768392949722,6.93260486,144.25,144.23,0.67686768]
[1768392950120,7.64397503,144.25,144.22,0.67686768]
[1768392952627,7.64397503,144.25,144.22,0.64971326]
[1768392952834,7.64397503,144.25,144.22,0.62255242]
[1768392955529,0.71137017,144.23,144.19,0.67686768]
[1768392955713,8.99968773,144.24,144.17,0.67686768]
[1768392955714,0.71137017,144.2,144.17,0.67686768]
[1768392956639,0.71137017,144.2,144.17,2.7434505]
[1768392957842,7.64627008,144.2,144.17,2.7434505]
[1768392958041,7.64627008,144.2,144.17,0.67686768]
[1768392958838,7.64627008,144.2,144.17,2.7434505]
[1768392959148,0.71137017,144.19,144.17,2.06658282]
[1768392959350,6.93489991,144.2,144.17,2.7434505]
[1768392960237,19.40128564,144.22,144.17,2.7434505]
[1768392960238,6.93433187,144.21,144.17,2.7434505]
[1768392961326,7.64570204,144.21,144.17,2.7434505]
[1768392962046,7.64570204,144.21,144.17,0.67686768]
[1768392962233,9.71228486,144.21,144.17,0.67686768]
[1768392966427,0.68059003,144.2,144.17,0.68449303]
[1768392966633,9.00091469,144.21,144.17,0.68449303]
[1768392967852,9.68150472,144.21,144.17,0.68449303]
[1768392969651,9.00091469,144.21,144.17,0.68449303]
[1768392974362,2.74717285,144.2,144.17,0.68449303]
[1768392974563,2.06658282,144.2,144.17,0.68449303]
[1768392974971,0.68059003,144.19,144.15,2.75107585]
[1768392975174,0.68059003,144.19,144.16,0.68449303]
[1768392976166,7.61623649,144.19,144.16,0.68449303]
[1768392979165,7.61558293,144.2,144.17,0.68449303]
[1768392979362,7.61558293,144.2,144.17,2.75107585]
[1768392979561,7.61558293,144.2,144.17,0.68449303]
[1768392983773,6.2099929,144.2,144.18,0.70617889]
[1768392985355,6.2099929,144.2,144.17,0.70617889]
[1768392986658,0.70405293,144.2,144.17,0.70617889]
[1768392988476,7.63913333,144.2,144.17,0.70617889]
[1768392998276,0.67386186,144.18,144.14,0.68676168]
[1768392999295,0.67386186,144.18,144.14,7.6243417]
[1768392999889,0.67386186,144.18,144.14,0.68676168]
[1768393000093,0.67386186,144.18,144.13,6.93810336]
[1768393000283,0.67386186,144.16,144.13,7.62486504]
[1768393000481,0.67386186,144.16,144.1,0.68676168]
[1768393000681,0.67386186,144.15,144.11,2.7533445]
[1768393000984,0.67386186,144.16,144.11,0.68676168]
[1768393001190,0.67386186,144.16,144.13,2.7533445]
[1768393001379,7.61011766,144.17,144.14,0.68676168]
[1768393001696,7.61011766,144.17,144.13,0.68676168]
[1768393002897,0.67386186,144.16,144.12,0.68676168]
[1768393003198,0.67386186,144.15,144.12,0.68676168]
[1768393004098,7.61120123,144.15,144.12,0.68676168]
[1768393005208,7.58120124,144.15,144.12,0.68676168]
[1768393006283,6.93673695,144.16,144.12,0.68676168]
[1768393007304,7.61059881,144.16,144.12,0.68676168]
[1768393007601,0.67386186,144.15,144.12,0.68676168]
[1768393008299,18.01570425,144.16,144.12,0.68676168]
[1768393008495,21.24862307,144.16,144.12,0.68676168]
[1768393008702,0.67386186,144.15,144.12,0.68676168]
[1768393009511,7.61122761,144.15,144.12,0.68676168]
[1768393012307,0.67386186,144.13,144.09,3.23291882]
[1768393012708,0.67386186,144.13,144.08,7.14036366]
[1768393012904,0.67386186,144.13,144.09,3.23291882]
[1768393013097,0.67386186,144.13,144.08,7.14036366]
[1768393013402,0.67386186,144.13,144.09,3.23291882]
[1768393014306,7.61226859,144.13,144.1,0.1507287]
[1768393015413,0.67386186,144.12,144.09,10.17300798]
[1768393015913,0.67386186,144.12,144.09,10.32373668]
[1768393016289,0.67386186,144.13,144.11,3.23291882]
[1768393016903,0.67386186,144.13,144.1,3.23291882]
[1768393017204,0.67386186,144.13,144.09,10.17277403]
[1768393017401,0.67386186,144.13,144.09,10.32350273]
[1768393017911,7.61247448,144.13,144.09,10.32350273]
[1768393018095,0.67386186,144.12,144.08,7.29116987]
[1768393018283,0.67386186,144.12,144.09,0.1507287]
[1768393018480,0.67386186,144.12,144.09,3.38364752]
[1768393018481,0.64386187,144.12,144.09,3.38364752]
[1768393019608,6.93861262,144.13,144.1,0.18072869]
[1768393019797,3.23291882,144.15,144.1,0.18072869]
[1768393019989,58.95552545,144.18,144.1,0.18072869]
[1768393020189,3.23291882,144.15,144.1,0.18072869]
[1768393020589,0.67386186,144.14,144.1,0.18072869]
[1768393020790,0.67386186,144.14,144.1,3.41364751]
[1768393021805,6.9381808,144.13,144.1,3.41364751]
[1768393021990,0.67386186,144.14,144.11,3.41364751]
[1768393022199,7.61157027,144.14,144.11,3.41364751]
[1768393022508,6.93770841,144.14,144.11,3.23291882]
[1768393022708,0.67386186,144.13,144.1,0.18072869]
[1768393023606,7.63974531,144.14,144.1,3.41364751]
[1768393023829,0.7020369,144.13,144.1,3.23291882]
[1768393024499,7.64030663,144.13,144.1,3.23291882]
[1768393026498,7.64030663,144.13,144.09,7.12064294]
[1768393026698,7.64030663,144.13,144.1,3.23291882]
[1768393027007,0.69665991,144.12,144.1,3.23291882]
[1768393028301,0.69665991,144.12,144.09,10.17283307]
[1768393029324,0.69665991,144.12,144.1,3.23291882]
[1768393029531,0.69665991,144.13,144.11,3.23291882]
[1768393031617,0.69665991,144.13,144.1,10.35296968]
[1768393032204,0.69665991,144.12,144.09,10.17289783]
[1768393032903,0.69665991,144.11,144.09,3.23291882]
[1768393033133,0.66945237,144.11,144.08,10.37350355]
[1768393033311,0.66945237,144.11,144.08,7.14058473]
[1768393033934,0.66945237,144.11,144.08,10.37350355]
[1768393034107,0.66945237,144.11,144.08,7.14058473]
[1768393034436,0.66945237,144.11,144.08,10.58143978]
[1768393036512,0.66945237,144.11,144.09,3.23291882]
[1768393036729,0.66945237,144.11,144.08,10.58143978]
[1768393037331,0.66945237,144.11,144.08,10.37350355]
[1768393038205,0.66945237,144.11,144.08,10.58143978]
[1768393038411,0.66945237,144.11,144.09,10.17298556]
[1768393044035,0.66945237,144.11,144.08,7.34829346]
[1768393044230,0.66945237,144.11,144.08,10.58121228]
[1768393044417,0.66945237,144.11,144.08,7.14035723]
[1768393044622,0.66945237,144.11,144.08,10.37327605]
[1768393045013,0.66945237,144.11,144.08,7.14035723]
[1768393045213,0.66945237,144.11,144.08,10.37327605]
[1768393045415,0.66945237,144.11,144.08,7.34829346]
[1768393045622,0.66945237,144.11,144.09,3.23291882]
[1768393046034,0.66945237,144.11,144.08,7.34829346]
[1768393046236,0.66945237,144.11,144.08,10.58121228]
[1768393047438,0.66945237,144.11,144.08,7.34829346]
[1768393047615,0.66945237,144.11,144.08,10.37327605]
[1768393048639,0.66945237,144.11,144.08,10.58121228]
[1768393050144,0.66945237,144.11,144.08,7.34829346]
[1768393050351,0.66945237,144.11,144.08,10.58121228]
[1768393050529,0.66945237,144.11,144.09,10.17295069]
[1768393050925,0.66945237,144.11,144.09,6.94003187]
[1768393051225,0.66945237,144.11,144.09,10.17295069]
[1768393053866,0.66945237,144.11,144.09,6.94003187]
[1768393054142,0.66945237,144.11,144.08,10.58123345]
[1768393054442,0.66945237,144.11,144.08,7.34831463]
[1768393054625,0.66945237,144.11,144.08,10.58123345]
[1768393055331,0.66945237,144.11,144.08,7.34831463]
[1768393055727,0.66945237,144.11,144.08,10.58123345]
[1768393055939,0.66945237,144.11,144.08,10.37329722]
[1768393057447,0.66945237,144.11,144.08,7.1403784]
[1768393057749,0.66945237,144.11,144.08,10.37329722]
[1768393058053,0.66945237,144.11,144.08,7.34831463]
[1768393058225,0.66945237,144.11,144.08,10.58123345]
[1768393058425,0.66945237,144.11,144.08,7.34831463]
[1768393058726,0.66945237,144.11,144.08,10.58123345]
[1768393059456,0.66945237,144.11,144.08,10.37329722]
[1768393059749,0.68731496,144.1,144.08,0.2]
[1768393059958,7.62708439,144.1,144.08,0.2]
[1768393060765,0.68731496,144.09,144.08,0.2]
[1768393062369,0.68731496,144.09,144.08,3.43291882]
[1768393062528,0.68731496,144.1,144.08,10.37346513]
[1768393063353,0.68731496,144.1,144.08,9.21106568]
[1768393066257,0.68731496,144.1,144.08,7.14054631]
[1768393066449,0.68731496,144.1,144.08,9.21106568]
[1768393069456,0.68731496,144.1,144.08,7.14054631]
[1768393073560,0.68731496,144.1,144.08,9.21106568]
[1768393076858,0.68731496,144.1,144.08,7.14054631]
[1768393077055,0.68731496,144.1,144.08,9.21106568]
[1768393077654,19.41536983,144.14,144.08,9.21106568]
[1768393077870,0.68731496,144.11,144.08,9.21106568]
[1768393078573,0.68731496,144.11,144.09,2.07051937]
[1768393079437,0.68731496,144.12,144.09,2.2784556]
[1768393079866,0.68731496,144.12,144.09,9.21834639]
[1768393080675,7.62523763,144.14,144.11,2.2784556]
[1768393080840,5.1968206,144.13,144.12,2.07051937]
[1768393081046,0.68731496,144.14,144.12,2.07051937]
[1768393094360,0.71326921,144.15,144.12,9.00902085]
[1768393094565,0.71326921,144.17,144.14,2.07051937]
[1768393094768,0.71326921,144.17,144.15,2.07051937]
[1768393095467,7.64970603,144.17,144.15,2.07051937]
[1768393095884,7.64970603,144.17,144.16,2.07051937]
[1768393096081,0.71326921,144.16,144.15,2.07051937]
[1768393096384,12.12494614,144.17,144.15,2.07051937]
[1768393096385,6.93643682,144.17,144.15,2.07051937]
[1768393097280,24.27424105,144.19,144.15,2.07051937]
[1768393097480,5.18635364,144.18,144.15,2.07051937]
[1768393097782,24.27424105,144.19,144.15,2.07051937]
[1768393097985,5.18635259,144.18,144.15,2.07051937]
[1768393098191,24.27424105,144.19,144.15,2.07051937]
[1768393098484,0.71326921,144.17,144.15,2.07051937]
[1768393098683,7.64964867,144.17,144.15,2.07051937]
[1768393101578,0.68603414,144.18,144.15,2.75840398]
[1768393104379,7.6219713,144.18,144.15,2.75840398]
[1768393105281,7.6219713,144.18,144.16,0.68788461]
[1768393105282,6.93593716,144.18,144.16,0.68788461]
[1768393105482,0.68603414,144.19,144.17,0.68788461]
[1768393105682,0.68603414,144.2,144.17,0.68788461]
[1768393105871,7.62055052,144.21,144.18,0.68788461]
[1768393106072,5.1807816,144.2,144.18,0.68788461]
[1768393106378,7.62055052,144.21,144.18,0.68788461]
[1768393106585,7.62055052,144.21,144.18,2.75840398]
[1768393107103,7.62055052,144.21,144.18,2.69840412]
[1768393107402,7.62055052,144.21,144.18,0.62788475]
[1768393107778,0.68603414,144.21,144.18,9.63403617]
[1768393108099,7.62038619,144.21,144.18,0.62788475]
[1768393111675,7.62038619,144.21,144.18,2.69840412]
[1768393113940,7.62011139,144.22,144.19,0.68788461]
[1768393116804,7.62011139,144.22,144.19,2.75840398]
[1768393117100,7.62011139,144.22,144.19,9.69366473]
[1768393118009,7.62011139,144.22,144.19,0.68788461]
[1768393121704,7.62011139,144.22,144.19,2.75840398]
[1768393122619,7.62011139,144.22,144.19,9.69367182]
[1768393123323,7.62011139,144.22,144.19,10.85337825]
[1768393123524,0.68603414,144.22,144.19,10.85337825]
[1768393125032,7.62002444,144.22,144.19,0.68788461]
[1768393128964,0.697516,144.21,144.18,7.65995064]
[1768393129137,0.697516,144.21,144.16,7.66080427]
[1768393129428,0.697516,144.21,144.16,10.89103007]
[1768393130739,0.697516,144.2,144.16,10.89103007]
[1768393132126,6.93472711,144.21,144.16,10.89103007]
[1768393132127,6.93472711,144.21,144.17,0.72434802]
[1768393132314,7.63224311,144.21,144.17,0.72434802]
[1768393132513,6.93472711,144.21,144.17,0.72434802]
[1768393133843,7.63224311,144.21,144.17,0.72434802]
[1768393134028,6.93472711,144.21,144.17,0.72434802]
[1768393134442,7.63224311,144.21,144.17,0.72434802]
[1768393135141,6.93472711,144.21,144.17,0.72434802]
[1768393135627,0.697516,144.21,144.17,0.72434802]
[1768393136026,10.16429494,144.22,144.17,0.72434802]
[1768393136836,0.697516,144.21,144.17,0.72434802]
[1768393137031,10.86181094,144.22,144.17,0.72434802]
[1768393137235,7.63158514,144.22,144.18,0.72434802]
[1768393137442,6.93406914,144.22,144.18,0.72434802]
[1768393138925,0.697516,144.21,144.17,10.89079309]
[1768393139150,5.877435,144.21,144.17,10.89079309]
[1768393139350,0.697516,144.21,144.17,10.89079309]
[1768393140135,0.697516,144.21,144.17,7.66056729]
[1768393140337,6.93406914,144.22,144.18,0.72434802]
[1768393140540,5.18192622,144.21,144.18,0.72434802]
[1768393140829,6.93406914,144.22,144.18,0.72434802]
[1768393141037,5.18192268,144.21,144.18,0.72434802]
[1768393141351,7.63158514,144.22,144.18,0.72434802]
[1768393141531,5.18260554,144.21,144.18,0.72434802]
[1768393141731,6.93406914,144.22,144.18,0.72434802]
[1768393141931,5.18260554,144.21,144.18,0.72434802]
[1768393142145,6.93406914,144.22,144.18,0.72434802]
[1768393142354,0.697516,144.2,144.16,7.66093085]
[1768393142559,7.63158514,144.22,144.17,0.72434802]
[1768393142738,5.18359061,144.21,144.17,0.72434802]
[1768393142937,10.86181094,144.22,144.17,0.72434802]
[1768393143249,5.18336828,144.21,144.17,0.72434802]
[1768393143557,10.86181094,144.22,144.17,0.72434802]
[1768393143854,5.18421272,144.21,144.18,0.72434802]
[1768393144062,7.63158514,144.22,144.18,0.72434802]
[1768393144348,5.18421313,144.21,144.18,0.72434802]
[1768393144555,7.63158514,144.22,144.18,0.72434802]
[1768393144748,5.18516969,144.21,144.18,0.72434802]
[1768393144925,7.63158514,144.22,144.18,0.72434802]
[1768393145132,5.18516974,144.21,144.18,0.72434802]
[1768393145342,0.66203599,144.21,144.18,0.72434802]
[1768393145548,6.93406914,144.22,144.18,0.72434802]
[1768393145856,5.18625408,144.21,144.18,0.72434802]
[1768393146042,6.93406914,144.22,144.18,0.72434802]
[1768393146244,5.18625408,144.21,144.18,0.72434802]
[1768393146555,6.93406914,144.22,144.18,0.72434802]
[1768393146736,5.18749659,144.21,144.18,0.72434802]
[1768393146937,6.93406914,144.22,144.18,0.72434802]
[1768393147236,5.18749659,144.21,144.18,0.72434802]
[1768393147432,6.93406914,144.22,144.18,0.72434802]
[1768393147627,5.18875955,144.21,144.18,0.72434802]
[1768393147845,10.16429494,144.22,144.18,0.72434802]
[1768393148048,5.18875777,144.21,144.18,0.72434802]
[1768393148242,0.66203599,144.19,144.16,10.16674397]
[1768393148444,10.16429494,144.22,144.17,0.66857958]
[1768393148659,5.19025635,144.21,144.17,0.66857958]
[1768393148960,5.19025635,144.2,144.17,0.66857958]
[1768393149160,6.93406914,144.22,144.17,0.66857958]
[1768393149353,5.19198926,144.21,144.17,0.66857958]
[1768393149532,6.93406914,144.22,144.19,0.66857958]
[1768393149533,3.74198926,144.2,144.19,0.66857958]
[1768393149736,6.93406914,144.22,144.17,10.16642277]
[1768393149966,6.93406914,144.22,144.18,0.07324157]
[1768393150459,7.59610513,144.22,144.18,0.07324157]
[1768393151065,0.66203599,144.22,144.18,0.07324157]
[1768393151835,10.82585699,144.23,144.18,0.07324157]
[1768393153068,0.66203599,144.22,144.18,0.07324157]
[1768393153361,0.66203599,144.22,144.17,10.20980442]
[1768393154366,0.66203599,144.22,144.18,0.07324157]
[1768393154962,0.66203599,144.22,144.17,10.13656285]
[1768393155276,7.59563119,144.23,144.18,0.07324157]
[1768393155659,7.59563119,144.23,144.19,0.07324157]
[1768393155846,0.66203599,144.23,144.19,0.07324157]
[1768393156873,0.66203599,144.23,144.18,3.2302258]
[1768393157169,13.4415295,144.25,144.2,0.07324157]
[1768393157366,7.59467233,144.25,144.21,0.07324157]
[1768393157968,7.59467233,144.25,144.21,3.30346737]
[1768393158169,0.66203599,144.24,144.2,3.30346737]
[1768393158362,0.66203599,144.24,144.2,0.07324157]
[1768393158564,0.66203599,144.24,144.2,3.30346737]
[1768393159463,0.66203599,144.24,144.2,0.07324157]
[1768393159661,0.66203599,144.24,144.2,3.30346737]
[1768393159966,7.59510323,144.24,144.2,0.07324157]
[1768393161576,5.19569769,144.23,144.2,0.07324157]
[1768393161777,5.19569769,144.22,144.2,0.07324157]
[1768393161973,2.82202688,144.21,144.19,3.2302258]
[1768393162276,7.65229506,144.24,144.19,3.2302258]
[1768393162687,0.71922782,144.23,144.19,3.2302258]
[1768393163058,0.71922782,144.23,144.15,24.2802636]
[1768393163267,0.71922782,144.23,144.19,3.2302258]
[1768393165573,0.71922782,144.23,144.2,3.2302258]
[1768393166282,0.71922782,144.23,144.17,6.9362558]
[1768393166465,0.71922782,144.23,144.2,3.2302258]
[1768393174401,5.91376211,144.22,144.2,3.2302258]
[1768393174573,0.71922782,144.22,144.2,3.2302258]
[1768393176892,0.71922782,144.22,144.17,6.9362558]
[1768393177191,0.65759378,144.21,144.2,3.2302258]
[1768393177384,6.93306724,144.24,144.2,3.2302258]
[1768393177967,6.93240901,144.25,144.2,3.2302258]
[1768393179288,0.65759376,144.23,144.2,3.2302258]
[1768393179493,0.65759376,144.23,144.21,3.2302258]
[1768393180187,7.59020631,144.25,144.21,3.88781956]
[1768393180976,0.65759376,144.24,144.21,3.2302258]
[1768393181596,7.59020631,144.25,144.21,3.88781956]
[1768393181777,7.59020631,144.25,144.22,0.65759376]
[1768393185606,7.68971269,144.26,144.23,2.72451396]
[1768393185781,7.68971269,144.26,144.23,2.66451398]
[1768393186407,7.68971269,144.26,144.23,0.59759378]
[1768393188408,7.68971269,144.26,144.23,0.5375938]
[1768393188601,0.65759376,144.25,144.22,2.0669202]
[1768393189297,5.19202479,144.24,144.22,2.0669202]
[1768393189602,0.52294355,144.23,144.22,2.0669202]
[1768393189808,7.68971269,144.26,144.22,2.0669202]
[1768393191110,7.590106,144.25,144.22,2.0669202]
[1768393192905,0.65759376,144.24,144.22,2.0669202]
[1768393193417,0.1,144.26,144.22,2.0669202]
[1768393193418,0.75759376,144.26,144.23,2.0669202]
[1768393193783,0.1,144.26,144.23,2.0669202]
[1768393195599,0.1,144.26,144.17,24.27689532]
[1768393195912,0.1,144.26,144.23,2.0669202]
[1768393196094,0.1,144.26,144.2,2.0669202]
[1768393196410,0.1,144.26,144.23,2.0669202]
[1768393198910,0.65759376,144.25,144.18,6.93544554]
[1768393199090,0.65759376,144.24,144.19,2.0669202]
[1768393200012,0.65759376,144.24,144.19,9.00219258]
[1768393201415,0.65759376,144.23,144.19,9.00219258]
[1768393202314,0.65759376,144.23,144.19,6.93527238]
[1768393202614,0.65759376,144.23,144.19,9.00219258]
[1768393202796,0.65759376,144.23,144.16,24.27804101]
[1768393203316,0.65759376,144.23,144.19,2.0669202]
[1768393206413,7.62657473,144.24,144.19,2.0669202]
[1768393207019,7.62657473,144.24,144.18,6.93534487]
[1768393207207,7.62657473,144.24,144.19,2.0669202]
[1768393208904,0.69356583,144.23,144.19,2.0669202]
[1768393209118,7.62657473,144.24,144.19,2.0669202]
[1768393209418,0.69356583,144.23,144.19,2.0669202]
[1768393212128,0.69356583,144.23,144.19,9.0022019]
[1768393213415,0.69356583,144.23,144.2,2.0669202]
[1768393215409,7.62645772,144.24,144.2,2.0669202]
[1768393215609,5.19397919,144.23,144.2,2.0669202]
[1768393215809,7.62645772,144.24,144.2,2.0669202]
[1768393216023,5.19398097,144.23,144.2,2.0669202]
[1768393216221,0.69356583,144.24,144.2,9.0017005]
[1768393216531,5.19400747,144.23,144.2,9.0017005]
[1768393216832,0.69356583,144.24,144.2,6.9347803]
[1768393217010,0.69356583,144.22,144.19,6.93502588]
[1768393217212,0.69356583,144.22,144.19,9.00194608]
[1768393217412,0.69356583,144.22,144.2,2.0669202]
[1768393218333,0.69356583,144.24,144.2,2.0669202]
[1768393218526,5.19428668,144.23,144.2,2.0669202]
[1768393218836,0.69356583,144.24,144.2,2.0669202]
[1768393219019,5.19428312,144.23,144.2,2.0669202]
[1768393219220,0.69356583,144.24,144.2,2.0669202]
[1768393219420,5.19433749,144.23,144.2,2.0669202]
[1768393219633,0.69356583,144.24,144.2,2.0669202]
[1768393219935,5.1943549,144.23,144.2,2.0669202]
[1768393220132,0.69356583,144.24,144.2,2.0669202]
[1768393220339,5.19440315,144.23,144.2,2.0669202]
[1768393220512,0.69356583,144.24,144.2,2.0669202]
[1768393220812,5.19442712,144.23,144.2,2.0669202]
[1768393221110,0.69356583,144.24,144.2,2.0669202]
[1768393221310,5.19447514,144.23,144.2,2.0669202]
[1768393221606,0.69356583,144.24,144.2,2.0669202]
[1768393221820,5.19450352,144.23,144.2,2.0669202]
[1768393222134,0.69356583,144.24,144.2,2.0669202]
[1768393222428,5.88569317,144.23,144.2,2.0669202]
[1768393222610,0.69114194,144.23,144.2,2.0669202]
[1768393223321,0.69114194,144.23,144.19,2.0669202]
[1768393226137,0.69114194,144.23,144.18,6.9353992]
[1768393226322,0.69114194,144.23,144.19,2.0669202]
[1768393227546,0.69114194,144.23,144.2,2.0669202]
[1768393228040,0.69114194,144.23,144.19,6.93519905]
[1768393228226,0.69114194,144.23,144.2,2.0669202]
[1768393228924,7.62355095,144.25,144.2,2.0669202]
[1768393229138,5.19461411,144.24,144.19,6.93519905]
[1768393229332,5.19461411,144.23,144.2,2.0669202]
[1768393231845,5.19461411,144.23,144.19,2.0669202]
[1768393232041,5.19461411,144.23,144.17,24.27643484]
[1768393232246,5.19461411,144.23,144.19,2.0669202]
[1768393233228,5.19461411,144.23,144.17,24.27643484]
[1768393233434,5.19461411,144.23,144.19,2.0669202]
[1768393233631,5.88575605,144.23,144.19,2.0669202]
[1768393233838,0.69114194,144.23,144.19,2.0669202]
[1768393235143,7.6241017,144.24,144.19,9.00216824]
[1768393235343,5.19451527,144.23,144.2,2.0669202]
[1768393235550,7.6241017,144.24,144.2,2.0669202]
[1768393235848,5.19445131,144.23,144.2,2.0669202]
[1768393236145,7.6241017,144.24,144.2,2.0669202]
[1768393236349,5.1944776,144.23,144.2,2.0669202]
[1768393236525,7.6241017,144.24,144.2,2.0669202]
[1768393236725,5.19441939,144.23,144.2,2.0669202]
[1768393236941,7.6241017,144.24,144.2,2.0669202]
[1768393237145,5.19442116,144.23,144.2,2.0669202]